fUSD/lending_fUSD_20250416
["ID","MTS","AMOUNT","RATE_DAILY","PERIOD"]
[358140515,1744765776723,-13819.89742817,0.0004399,120]
[358140516,1744765776748,-1385.63019841,0.00044,30]
[358140517,1744765776773,-253.52285127,0.00044,120]
[358140518,1744765776799,-3153.34858194,0.00044,120]
[358140519,1744765776824,-369.11299267,0.00044,120]
[358140520,1744765776853,-150.0,0.00044073,120]
[358140521,1744765776878,-2406.07,0.00044085,30]
[358140522,1744765776903,-1908.82933,0.00044088,30]
[358140523,1744765776927,-2104.44,0.00044098,30]
[358140524,1744765776951,-2000.0,0.00044109,120]
[358140525,1744765776975,-324.02,0.00044228,30]
[358140526,1744765777004,-1908.82933,0.00044288,30]
[358140527,1744765777028,-1168.33,0.00044333,30]
[358140528,1744765777054,-150.0,0.00044382,120]
[358140529,1744765777088,-2000.0,0.00044383,120]
[358140530,1744765777117,-420.83633369,0.0004439,120]
[358140531,1744765777143,-300.0,0.00044401,120]
[358140532,1744765777171,-150.0,0.00044423,120]
[358140533,1744765777197,-150.0,0.00044425,30]
[358140534,1744765777223,-160.75,0.00044436,30]
[358140535,1744765777250,-1908.82933,0.00044488,30]
[358140536,1744765777276,-150.0,0.000445,120]
[358140537,1744765777303,-1068.0,0.0004463,30]
[358140538,1744765777331,-2143.88053181,0.00044657,120]
[358140539,1744765777357,-362.29,0.0004468,30]
[358140540,1744765777383,-2396.11,0.00044687,30]
[358140541,1744765777411,-1908.82933,0.00044688,30]
[358140542,1744765777438,-389.05,0.00044704,30]
[358140543,1744765777466,-374.64765797,0.000448,120]
[358140544,1744765777493,-483.97,0.00044804,30]
[358140545,1744765777519,-1908.82933,0.00044888,30]
[358140546,1744765777545,-2719.66532319,0.000449,30]
[358140547,1744765777781,-1047.09,0.00044966,30]
[358140548,1744765777810,-150.0,0.00044966,120]
[358140549,1744765777837,-151.0,0.00045,120]
[358140550,1744765777864,-151.0,0.00045,120]
[358140551,1744765777890,-1015.61417387,0.00045,120]
[358140552,1744765777916,-223.5917238,0.00045,32]
[358140553,1744765777948,-507.41056649,0.00045,120]
[358140554,1744765777974,-1051.90494464,0.00045,120]
[358140555,1744765778003,-1281.03812481,0.00045,120]
[358140556,1744765778028,-285.20393524,0.00045,120]
[358140557,1744765778054,-759.49,0.00045,120]
[358140558,1744765778080,-3679.0,0.00045,120]
[358140559,1744765778105,-244.13646622,0.00045,100]
[358140560,1744765778130,-309.5,0.00045,120]
[358140561,1744765778155,-1908.82933,0.00045088,30]
[358140562,1744765778180,-831.93,0.00045205,120]
[358140563,1744765778204,-2000.0,0.00045205,120]
[358140564,1744765778229,-300.0,0.00045205,30]
[358140565,1744765778254,-1908.82933,0.00045288,30]
[358140566,1744765778279,-1011.15562498,0.00045321,30]
[358140567,1744765778304,-150.0,0.00045458,120]
[358140568,1744765778329,-500.0,0.00045485,120]
[358140569,1744765778354,-1908.82933,0.00045488,30]
[358140570,1744765778379,-150.0,0.00045649,120]
[358140571,1744765778404,-150.0,0.00045654,120]
[358140572,1744765778429,-1908.82933,0.00045688,30]
[358140573,1744765778455,-184.54836219,0.000457,120]
[358140574,1744765778480,-150.0,0.000457,120]
[358140575,1744765778512,-152.75,0.000457,39]
[358140576,1744765778545,-152.75,0.000457,39]
[358140577,1744765778574,-152.75,0.000457,39]
[358140578,1744765778605,-152.75,0.000457,39]
[358140579,1744765778635,-152.75,0.000457,39]
[358140580,1744765778665,-152.75,0.000457,39]
[358140581,1744765778700,-152.75,0.000457,39]
[358140582,1744765778733,-152.75,0.000457,39]
[358140583,1744765778765,-152.75,0.000457,39]
[358140584,1744765778797,-152.75,0.000457,39]
[358140585,1744765778828,-152.75,0.000457,39]
[358140586,1744765778857,-152.75,0.000457,39]
[358140587,1744765778886,-152.75,0.000457,39]
[358140588,1744765778915,-152.75,0.000457,39]
[358140589,1744765778944,-152.75,0.000457,39]
[358140590,1744765778974,-152.75,0.000457,39]
[358140591,1744765779004,-152.75,0.000457,39]
[358140592,1744765779034,-152.75,0.000457,39]
[358140593,1744765779062,-152.75,0.000457,39]
[358140594,1744765779093,-152.75,0.000457,39]
[358140595,1744765779122,-152.75,0.000457,39]
[358140596,1744765779150,-152.75,0.000457,39]
[358140597,1744765779175,-150.0,0.000458,120]
[358140598,1744765779200,-183.71214,0.000458,120]
[358140599,1744765779225,-300.0,0.00045803,120]
[358140600,1744765779251,-1908.82933,0.00045888,30]
[358140601,1744765779276,-1347.98850569,0.000459,119]
[358140602,1744765779304,-1212.55674059,0.00046,120]
[358140603,1744765779330,-626.21573216,0.00046,60]
[358140604,1744765779356,-475.67786523,0.00046,120]
[358140605,1744765779382,-1000.0,0.00046,30]
[358140606,1744765779421,-3085.93373974,0.00046,30]
[358140607,1744765779450,-183.0,0.00046,120]
[358140608,1744765779477,-1427.00422164,0.00046,120]
[358140609,1744765779505,-1450.14877999,0.00046,120]
[358140610,1744765779531,-244.13646622,0.00046,101]
[358140611,1744765779557,-3383.96,0.00046,120]
[358140612,1744765779585,-2819.77,0.00046,120]
[358140613,1744765779612,-2340.16,0.00046,120]
[358140614,1744765779640,-1908.82933,0.00046088,30]
[358140615,1744765779667,-150.0,0.00046215,120]
[358140616,1744765779697,-1908.82933,0.00046288,30]
[358140617,1744765779726,-150.0,0.00046332,120]
[358140618,1744765779752,-3792.76814183,0.000464,120]
[358140619,1744765779779,-150.0,0.00046463,120]
[358140620,1744765779807,-1908.82933,0.00046488,30]
[358140621,1744765779835,-150.0,0.00046523,120]
[358140622,1744765779862,-150.0,0.00046535,120]
[358140623,1744765779889,-831.93,0.00046575,120]
[358140624,1744765779915,-1825.348,0.00046575,120]
[358140625,1744765779942,-1908.82933,0.00046688,30]
[358140626,1744765779968,-150.0,0.00046724,120]
[358140627,1744765779995,-1908.82933,0.00046888,30]
[358140628,1744765780021,-150.0,0.000469,120]
[358140629,1744765780048,-1068.0,0.00046979,30]
[358140630,1744765780075,-666.04,0.00046986,120]
[358140631,1744765780102,-150.0,0.00047,120]
[358140632,1744765780127,-591.82923251,0.00047,30]
[358140633,1744765780153,-189.88658165,0.00047,120]
[358140634,1744765780179,-204.76732962,0.00047,120]
[358140635,1744765780205,-183.71214,0.00047,120]
[358140636,1744765780232,-244.13646622,0.00047,102]
[358140637,1744765780258,-300.0,0.00047204,120]
[358140638,1744765780284,-150.0,0.00047303,120]
[358140639,1744765780311,-150.0,0.00047305,120]
[358140640,1744765780339,-150.0,0.00047425,120]
[358140641,1744765780364,-687.34933616,0.000475,30]
[358140642,1744765780569,-218.88811399,0.000475,120]
[358140643,1744765780596,-150.0,0.00047602,120]
[358140644,1744765780624,-150.0,0.00047731,120]
[358140645,1744765780651,-957.20738872,0.000478,120]
[358140646,1744765780678,-150.0,0.0004785,120]
[358140647,1744765780707,-1081.36746134,0.000479,120]
[358140648,1744765780735,-831.93,0.00047945,120]
[358140649,1744765780762,-1033.03593176,0.00048,120]
[358140650,1744765780790,-1000.0,0.00048,120]
[358140651,1744765780816,-183.0,0.00048,120]
[358140652,1744765780842,-1331.08011318,0.00048,120]
[358140653,1744765780868,-220.0,0.00048,120]
[358140654,1744765780894,-1427.00422164,0.00048,120]
[358140655,1744765780921,-1450.14877999,0.00048,120]
[358140656,1744765780946,-244.13646622,0.00048,103]
[358140657,1744765780972,-150.0,0.00048044,120]
[358140658,1744765780999,-174.18564,0.000481,120]
[358140659,1744765781025,-150.0,0.000482,120]
[358140660,1744765781052,-183.71214,0.000482,120]
[358140661,1744765781079,-150.0,0.00048215,120]
[358140662,1744765781106,-150.0,0.00048228,120]
[358140663,1744765781131,-500.0,0.00048246,120]
[358140664,1744765781157,-500.0,0.00048246,120]
[358140665,1744765781183,-500.0,0.00048246,120]
[358140666,1744765781208,-500.0,0.00048246,120]
[358140667,1744765781234,-500.0,0.00048246,120]
[358140668,1744765781260,-500.0,0.00048246,120]
[358140669,1744765781285,-499.0,0.00048246,120]
[358140670,1744765781312,-500.0,0.00048246,120]
[358140671,1744765781339,-500.0,0.00048246,120]
[358140672,1744765781363,-500.0,0.00048246,120]
[358140673,1744765781389,-500.0,0.00048246,120]
[358140674,1744765781415,-500.0,0.00048246,120]
[358140675,1744765781441,-501.0,0.00048246,120]
[358140676,1744765781468,-150.0,0.00048347,120]
[358140677,1744765781495,-150.0,0.00048384,120]
[358140678,1744765781522,-1035.81,0.000485,120]
[358140679,1744765781547,-330.34225011,0.000486,120]
[358140680,1744765781575,-500.0,0.000486,120]
[358140681,1744765781602,-300.0,0.00048605,120]
[358140682,1744765781629,-150.0,0.00048693,120]
[358140683,1744765781655,-608.54837191,0.000488,120]
[358140684,1744765781682,-3159.21754602,0.000488,120]
[358140685,1744765781710,-269.04622283,0.000488,120]
[358140686,1744765781736,-1704.9395275,0.00049,120]
[358140687,1744765781763,-600.16372701,0.00049,120]
[358140688,1744765781788,-760.83983425,0.00049,30]
[358140689,1744765781813,-321.61350501,0.00049,30]
[358140690,1744765781838,-330.47685094,0.00049,120]
[358140691,1744765781863,-2000.0,0.00049,120]
[358140692,1744765781887,-244.13646622,0.00049,104]
[358140693,1744765781912,-2000.0,0.00049,90]
[358140694,1744765781936,-642.16,0.0004913,30]
[358140695,1744765781960,-711.36,0.00049156,30]
[358140696,1744765781985,-780.61,0.00049258,30]
[358140697,1744765782013,-2145.51,0.00049281,30]
[358140698,1744765782038,-3310.06,0.000493,30]
[358140699,1744765782062,-305.77080733,0.00049315,30]
[358140700,1744765782090,-150.0,0.00049315,30]
[358140701,1744765782114,-150.0,0.00049315,30]
[358140702,1744765782139,-214.54507832,0.00049315,30]
[358140703,1744765782163,-150.0,0.00049315,30]
[358140704,1744765782187,-150.0,0.00049315,30]
[358140705,1744765782212,-150.0,0.00049315,30]
[358140706,1744765782236,-702.96,0.00049315,120]
[358140707,1744765782261,-500.0,0.00049315,120]
[358140708,1744765782287,-500.0,0.00049315,120]
[358140709,1744765782312,-500.0,0.00049315,120]
[358140710,1744765782337,-500.0,0.00049315,120]
[358140711,1744765782362,-2000.0,0.00049315,120]
[358140712,1744765782385,-467.21834019,0.00049315,120]
[358140713,1744765782409,-3000.0,0.00049315,120]
[358140714,1744765782433,-535.36999336,0.00049315,120]
[358140715,1744765782457,-500.0,0.00049315,120]
[358140716,1744765782482,-514.76804744,0.00049315,120]
[358140717,1744765782506,-509.48608151,0.00049315,120]
[358140718,1744765782530,-500.0,0.00049315,120]
[358140719,1744765782554,-436.84455005,0.00049315,120]
[358140720,1744765782580,-500.0,0.00049315,120]
[358140721,1744765782609,-500.0,0.00049315,120]
[358140722,1744765782635,-500.0,0.00049315,120]
[358140723,1744765782660,-500.0,0.00049315,120]
[358140724,1744765782686,-500.0,0.00049315,120]
[358140725,1744765782712,-550.9226033,0.00049315,120]
[358140726,1744765782739,-500.0,0.00049315,120]
[358140727,1744765782766,-500.0,0.00049315,120]
[358140728,1744765782790,-500.0,0.00049315,120]
[358140729,1744765782815,-507.24022696,0.00049315,120]
[358140730,1744765782843,-500.0,0.00049315,120]
[358140731,1744765782868,-500.0,0.00049315,120]
[358140732,1744765782893,-500.0,0.00049315,120]
[358140733,1744765782918,-500.0,0.00049315,120]
[358140734,1744765782943,-500.0,0.00049315,120]
[358140735,1744765782968,-239.63822545,0.00049315,120]
[358140736,1744765782996,-831.93,0.00049315,120]
[358140737,1744765783185,-500.0,0.00049315,120]
[358140738,1744765783212,-552.98041173,0.00049315,120]
[358140739,1744765783237,-500.0,0.00049315,120]
[358140740,1744765783263,-500.0,0.00049315,120]
[358140741,1744765783290,-500.0,0.00049315,120]
[358140742,1744765783316,-500.0,0.00049315,120]
[358140743,1744765783344,-500.0,0.00049315,120]
[358140744,1744765783371,-304.28824057,0.00049315,30]
[358140745,1744765783396,-500.0,0.00049315,120]
[358140746,1744765783421,-500.0,0.00049315,120]
[358140747,1744765783446,-533.14391472,0.00049315,120]
[358140748,1744765783470,-509.12529603,0.00049315,120]
[358140749,1744765783496,-500.0,0.00049315,120]
[358140750,1744765783521,-500.0,0.00049315,120]
[358140751,1744765783546,-500.0,0.00049315,120]
[358140752,1744765783573,-500.0,0.00049315,120]
[358140753,1744765783598,-284.54885624,0.00049315,120]
[358140754,1744765783623,-500.0,0.00049315,120]
[358140755,1744765783648,-421.73685686,0.00049315,120]
[358140756,1744765783674,-512.9343478,0.00049315,120]
[358140757,1744765783702,-500.0,0.00049315,120]
[358140758,1744765783729,-500.0,0.00049315,120]
[358140759,1744765783756,-500.0,0.00049315,120]
[358140760,1744765783782,-500.0,0.00049315,120]
[358140761,1744765783809,-500.0,0.00049315,120]
[358140762,1744765783836,-500.0,0.00049315,120]
[358140763,1744765783864,-500.0,0.00049315,120]
[358140764,1744765783891,-500.0,0.00049315,120]
[358140765,1744765783919,-500.0,0.00049315,120]
[358140766,1744765783945,-500.0,0.00049315,120]
[358140767,1744765783970,-500.0,0.00049315,120]
[358140768,1744765783998,-500.0,0.00049315,120]
[358140769,1744765784023,-500.0,0.00049315,120]
[358140770,1744765784048,-317.65113806,0.00049315,120]
[358140771,1744765784075,-313.18775528,0.00049315,120]
[358140772,1744765784100,-500.0,0.00049315,120]
[358140773,1744765784126,-500.0,0.00049315,120]
[358140774,1744765784151,-500.0,0.00049315,120]
[358140775,1744765784178,-626.13389691,0.00049315,120]
[358140776,1744765784202,-500.0,0.00049315,120]
[358140777,1744765784227,-500.0,0.00049315,120]
[358140778,1744765784252,-500.0,0.00049315,120]
[358140779,1744765784278,-500.0,0.00049315,120]
[358140780,1744765784303,-494.11766911,0.00049315,120]
[358140781,1744765784329,-500.0,0.00049315,120]
[358140782,1744765784354,-500.0,0.00049315,120]
[358140783,1744765784379,-500.0,0.00049315,120]
[358140784,1744765784404,-500.0,0.00049315,120]
[358140785,1744765784429,-500.0,0.00049315,120]
[358140786,1744765784456,-500.0,0.00049315,120]
[358140787,1744765784480,-506.15435221,0.00049315,120]
[358140788,1744765784505,-500.0,0.00049315,120]
[358140789,1744765784529,-500.0,0.00049315,120]
[358140790,1744765784554,-500.0,0.00049315,120]
[358140791,1744765784579,-500.0,0.00049315,120]
[358140792,1744765784604,-500.0,0.00049315,120]
[358140793,1744765784628,-500.0,0.00049315,120]
[358140794,1744765784652,-500.0,0.00049315,120]
[358140795,1744765784677,-500.0,0.00049315,120]
[358140796,1744765784703,-500.0,0.00049315,120]
[358140797,1744765784728,-500.0,0.00049315,120]
[358140798,1744765784753,-500.0,0.00049315,120]
[358140799,1744765784779,-500.0,0.00049315,120]
[358140800,1744765784805,-500.0,0.00049315,120]
[358140801,1744765784830,-500.0,0.00049315,120]
[358140802,1744765784855,-500.0,0.00049315,120]
[358140803,1744765784880,-563.33943229,0.00049315,120]
[358140804,1744765784905,-500.0,0.00049315,120]
[358140805,1744765784930,-350.75,0.00049315,120]
[358140806,1744765784955,-500.0,0.00049315,120]
[358140807,1744765784981,-500.0,0.00049315,120]
[358140808,1744765785009,-500.0,0.00049315,120]
[358140809,1744765785036,-500.0,0.00049315,120]
[358140810,1744765785061,-500.0,0.00049315,120]
[358140811,1744765785088,-500.0,0.00049315,120]
[358140812,1744765785113,-500.0,0.00049315,120]
[358140813,1744765785139,-500.0,0.00049315,120]
[358140814,1744765785165,-500.0,0.00049315,120]
[358140815,1744765785190,-500.0,0.00049315,120]
[358140816,1744765785216,-500.0,0.00049315,120]
[358140817,1744765785241,-505.19038837,0.00049315,120]
[358140818,1744765785266,-500.0,0.00049315,120]
[358140819,1744765785292,-500.0,0.00049315,120]
[358140820,1744765785317,-1281.64,0.00049315,30]
[358140821,1744765785342,-508.95217236,0.00049315,120]
[358140822,1744765785368,-500.0,0.00049315,120]
[358140823,1744765785393,-500.0,0.00049315,120]
[358140824,1744765785418,-500.0,0.00049315,120]
[358140825,1744765785442,-500.0,0.00049315,120]
[358140826,1744765785468,-500.0,0.00049315,120]
[358140827,1744765785493,-500.0,0.00049315,120]
[358140828,1744765785518,-160.14795711,0.00049315,120]
[358140829,1744765785544,-500.0,0.00049315,120]
[358140830,1744765785569,-500.0,0.00049315,120]
[358140831,1744765785596,-500.0,0.00049315,120]
[358140832,1744765785621,-500.0,0.00049315,120]
[358140833,1744765785797,-5000.0,0.00049315,120]
[358140834,1744765785825,-500.0,0.00049315,120]
[358140835,1744765785852,-500.0,0.00049315,120]
[358140836,1744765785877,-500.0,0.00049315,120]
[358140837,1744765785904,-2533.53,0.00049315,90]
[358140838,1744765785929,-500.0,0.00049315,120]
[358140839,1744765785955,-500.0,0.00049315,120]
[358140840,1744765785983,-500.0,0.00049315,120]
[358140841,1744765786010,-500.0,0.00049315,120]
[358140842,1744765786037,-500.0,0.00049315,120]
[358140843,1744765786062,-500.0,0.00049315,120]
[358140844,1744765786089,-500.0,0.00049315,120]
[358140845,1744765786114,-500.0,0.00049315,120]
[358140846,1744765786139,-563.05,0.00049315,120]
[358140847,1744765786164,-500.0,0.00049315,120]
[358140848,1744765786189,-500.0,0.00049315,120]
[358140849,1744765786215,-500.0,0.00049315,120]
[358140850,1744765786239,-511.58897017,0.00049315,120]
[358140851,1744765786264,-500.0,0.00049315,120]
[358140852,1744765786288,-500.0,0.00049315,120]
[358140853,1744765786314,-247.9435102,0.00049315,120]
[358140854,1744765786340,-627.32,0.00049315,120]
[358140855,1744765786365,-508.35685829,0.00049315,120]
[358140856,1744765786391,-500.0,0.00049315,120]
[358140857,1744765786417,-500.0,0.00049315,120]
[358140858,1744765786443,-500.0,0.00049315,120]
[358140859,1744765786469,-500.0,0.00049315,120]
[358140860,1744765786495,-500.0,0.00049315,120]
[358140861,1744765786520,-500.0,0.00049315,120]
[358140862,1744765786548,-500.0,0.00049315,120]
[358140863,1744765786574,-500.0,0.00049315,120]
[358140864,1744765786599,-264.74045371,0.00049315,120]
[358140865,1744765786626,-500.0,0.00049315,120]
[358140866,1744765786651,-500.0,0.00049315,120]
[358140867,1744765786678,-500.0,0.00049315,120]
[358140868,1744765786706,-470.86587699,0.00049315,120]
[358140869,1744765786733,-500.0,0.00049315,120]
[358140870,1744765786760,-500.0,0.00049315,120]
[358140871,1744765786788,-500.0,0.00049315,120]
[358140872,1744765786814,-505.26289929,0.00049315,120]
[358140873,1744765786842,-1119.93,0.00049315,120]
[358140874,1744765786869,-217.699605,0.00049315,120]
[358140875,1744765786897,-411.80907113,0.00049315,120]
[358140876,1744765786923,-500.0,0.00049315,120]
[358140877,1744765786949,-500.0,0.00049315,120]
[358140878,1744765786975,-500.0,0.00049315,120]
[358140879,1744765787003,-500.0,0.00049315,120]
[358140880,1744765787030,-1000.0,0.00049315,120]
[358140881,1744765787058,-500.0,0.00049315,120]
[358140882,1744765787085,-2185.17,0.00049315,120]
[358140883,1744765787111,-500.0,0.00049315,120]
[358140884,1744765787137,-500.0,0.00049315,120]
[358140885,1744765787163,-1551.42,0.00049315,120]
[358140886,1744765787188,-515.20334422,0.00049315,120]
[358140887,1744765787213,-500.0,0.00049315,120]
[358140888,1744765787239,-521.87519029,0.00049315,120]
[358140889,1744765787263,-500.0,0.00049315,120]
[358140890,1744765787290,-500.0,0.00049315,120]
[358140891,1744765787315,-150.0,0.00049315,120]
[358140892,1744765787342,-500.0,0.00049315,120]
[358140893,1744765787367,-852.17,0.00049315,120]
[358140894,1744765787392,-500.0,0.00049315,120]
[358140895,1744765787417,-1000.0,0.00049315,120]
[358140896,1744765787442,-500.0,0.00049315,120]
[358140897,1744765787471,-500.0,0.00049315,120]
[358140898,1744765787496,-500.0,0.00049315,120]
[358140899,1744765787521,-500.0,0.00049315,120]
[358140900,1744765787546,-500.0,0.00049315,120]
[358140901,1744765787571,-500.0,0.00049315,120]
[358140902,1744765787597,-818.1,0.00049315,120]
[358140903,1744765787623,-500.0,0.00049315,120]
[358140904,1744765787648,-504.09912116,0.00049315,120]
[358140905,1744765787672,-500.0,0.00049315,30]
[358140906,1744765787703,-500.0,0.00049315,120]
[358140907,1744765787730,-500.0,0.00049315,120]
[358140908,1744765787755,-500.0,0.00049315,120]
[358140909,1744765787780,-501.28511147,0.00049315,120]
[358140910,1744765787807,-500.0,0.00049315,120]
[358140911,1744765787832,-500.0,0.00049315,120]
[358140912,1744765787857,-500.0,0.00049315,120]
[358140913,1744765787886,-500.0,0.00049315,120]
[358140914,1744765787912,-500.0,0.00049315,120]
[358140915,1744765787937,-500.0,0.00049315,120]
[358140916,1744765787964,-500.0,0.00049315,120]
[358140917,1744765787989,-500.0,0.00049315,120]
[358140918,1744765788021,-500.0,0.00049315,120]
[358140919,1744765788048,-500.0,0.00049315,120]
[358140920,1744765788073,-500.0,0.00049315,120]
[358140921,1744765788098,-500.0,0.00049315,120]
[358140922,1744765788124,-500.0,0.00049315,120]
[358140923,1744765788152,-508.3153689,0.00049315,120]
[358140924,1744765788179,-500.0,0.00049315,120]
[358140925,1744765788206,-500.0,0.00049315,120]
[358140926,1744765788235,-500.0,0.00049315,120]
[358140927,1744765788262,-500.0,0.00049315,120]
[358140928,1744765788439,-506.85104713,0.00049315,120]
[358140929,1744765788467,-500.0,0.00049315,120]
[358140930,1744765788493,-503.13720325,0.00049315,120]
[358140931,1744765788520,-500.0,0.00049315,120]
[358140932,1744765788545,-506.7628765,0.00049315,120]
[358140933,1744765788569,-3097.59273903,0.00049315,120]
[358140934,1744765788596,-500.0,0.00049315,120]
[358140935,1744765788622,-500.0,0.00049315,120]
[358140936,1744765788648,-500.0,0.00049315,120]
[358140937,1744765788674,-500.0,0.00049315,120]
[358140938,1744765788701,-404.49726994,0.00049315,120]
[358140939,1744765788728,-500.0,0.00049315,120]
[358140940,1744765788754,-522.38630742,0.00049315,120]
[358140941,1744765788780,-649.02425515,0.00049315,120]
[358140942,1744765788806,-500.0,0.00049315,120]
[358140943,1744765788832,-500.0,0.00049315,120]
[358140944,1744765788858,-1000.0,0.00049315,120]
[358140945,1744765788884,-522.95816336,0.00049315,120]
[358140946,1744765788911,-500.0,0.00049315,120]
[358140947,1744765788936,-500.0,0.00049315,120]
[358140948,1744765788963,-500.0,0.00049315,120]
[358140949,1744765788988,-500.0,0.00049315,120]
[358140950,1744765789019,-500.0,0.00049315,120]
[358140951,1744765789044,-500.0,0.00049315,120]
[358140952,1744765789070,-500.0,0.00049315,120]
[358140953,1744765789099,-500.0,0.00049315,120]
[358140954,1744765789125,-500.0,0.00049315,120]
[358140955,1744765789153,-500.0,0.00049315,120]
[358140956,1744765789180,-2000.0,0.00049315,30]
[358140957,1744765789206,-500.0,0.00049315,120]
[358140958,1744765789232,-500.0,0.00049315,120]
[358140959,1744765789259,-500.0,0.00049315,120]
[358140960,1744765789284,-500.0,0.00049315,120]
[358140961,1744765789309,-500.0,0.00049315,120]
[358140962,1744765789334,-500.0,0.00049315,120]
[358140963,1744765789360,-500.0,0.00049315,120]
[358140964,1744765789385,-500.0,0.00049315,120]
[358140965,1744765789412,-500.0,0.00049315,120]
[358140966,1744765789438,-500.0,0.00049315,120]
[358140967,1744765789464,-543.69,0.00049315,120]
[358140968,1744765789491,-500.0,0.00049315,120]
[358140969,1744765789518,-500.0,0.00049315,120]
[358140970,1744765789543,-383.46432485,0.00049315,120]
[358140971,1744765789568,-500.0,0.00049315,120]
[358140972,1744765789596,-500.0,0.00049315,120]
[358140973,1744765789621,-500.0,0.00049315,120]
[358140974,1744765789646,-500.0,0.00049315,120]
[358140975,1744765789672,-2769.0,0.00049315,35]
[358140976,1744765789700,-500.0,0.00049315,120]
[358140977,1744765789726,-500.0,0.00049315,120]
[358140978,1744765789752,-500.0,0.00049315,120]
[358140979,1744765789777,-558.31684499,0.00049315,120]
[358140980,1744765789804,-500.0,0.00049315,120]
[358140981,1744765789830,-1000.0,0.00049315,120]
[358140982,1744765789857,-500.0,0.00049315,120]
[358140983,1744765789898,-500.0,0.00049315,120]
[358140984,1744765789934,-500.0,0.00049315,120]
[358140985,1744765789972,-1231.0,0.00049315,120]
[358140986,1744765790010,-522.53543249,0.00049315,120]
[358140987,1744765790041,-500.0,0.00049315,120]
[358140988,1744765790080,-500.0,0.00049315,120]
[358140989,1744765790117,-500.0,0.00049315,120]
[358140990,1744765790153,-500.0,0.00049315,120]
[358140991,1744765790189,-500.0,0.00049315,120]
[358140992,1744765790227,-500.0,0.00049315,120]
[358140993,1744765790263,-500.0,0.00049315,120]
[358140994,1744765790299,-500.0,0.00049315,120]
[358140995,1744765790335,-500.0,0.00049315,120]
[358140996,1744765790371,-500.0,0.00049315,120]
[358140997,1744765790401,-500.0,0.00049315,120]
[358140998,1744765790434,-500.0,0.00049315,120]
[358140999,1744765790466,-500.0,0.00049315,120]
[358141000,1744765790497,-500.0,0.00049315,120]
[358141001,1744765790529,-500.0,0.00049315,120]
[358141002,1744765790559,-500.0,0.00049315,120]
[358141003,1744765790590,-1986.36,0.00049315,120]
[358141004,1744765790622,-500.0,0.00049315,120]
[358141005,1744765790653,-500.0,0.00049315,120]
[358141006,1744765790685,-175.93097323,0.00049315,120]
[358141007,1744765790719,-500.0,0.00049315,120]
[358141008,1744765790752,-500.0,0.00049315,120]
[358141009,1744765790784,-500.0,0.00049315,120]
[358141010,1744765790818,-500.0,0.00049315,120]
[358141011,1744765790851,-500.0,0.00049315,120]
[358141012,1744765790884,-500.0,0.00049315,120]
[358141013,1744765790916,-907.66,0.00049315,120]
[358141014,1744765790947,-187.08,0.00049315,120]